fUSD/lending_fUSD_20240708
["ID","MTS","AMOUNT","RATE_DAILY","PERIOD"]
[331449894,1720421449665,-501.23538144,0.00014,2]
[331449895,1720421449677,-2478.29101073,0.00014,2]
[331449896,1720421449689,-849.96717983,0.00014,2]
[331449897,1720421449699,-650.23905597,0.00014,2]
[331449898,1720421449710,-235205.00818995,0.00014,2]
[331449899,1720421449720,-12611.04820383,0.00014,2]
[331449900,1720421449732,-7800.69533894,0.00014,2]
[331449901,1720421449746,-905.34153942,0.00014,2]
[331449902,1720421449757,-560.2023371,0.00014,2]
[331449903,1720421449768,-474.46635641,0.00014,2]
[331449904,1720421449780,-315.0,0.00014,2]
[331449905,1720421449791,-2719.05049637,0.00014,2]
[331449906,1720421453010,-246.68749225,0.0001399,2]
[331449907,1720421453020,-815.26809428,0.00014,2]
[331449908,1720421453031,-5751.94436489,0.00014,2]
[331449909,1720421453043,-584.18096118,0.00014,2]
[331449910,1720421453055,-413.27020903,0.00014,2]
[331449911,1720421453069,-317256.19056204,0.00014,2]
[331449912,1720421453081,-4494.39994328,0.00014,2]
[331449913,1720421453092,-6776.90515947,0.00014,2]
[331449914,1720421453883,-484.04490237,0.00014,2]
[331449915,1720421453895,-648.10177974,0.00014,2]
[331449916,1720421453907,-2506.77543946,0.00014,2]
[331449917,1720421453920,-2604.69232305,0.00014,2]
[331449918,1720421453931,-7969.17193469,0.00014,2]
[331449919,1720421453943,-3386.27530717,0.00014,2]
[331449920,1720421454757,-1340.26476761,0.00014,2]
[331449921,1720421454768,-1258.28539142,0.00014,2]
[331449922,1720421454781,-10658.55315889,0.00014,2]
[331449923,1720421454792,-18641.9194012,0.00014,2]
[331449924,1720421454804,-1876.900965,0.00014,2]
[331449925,1720421454818,-662.94200007,0.00014,2]
[331449926,1720421454830,-760.703511,0.00014,2]
[331449927,1720421454848,-290.31856456,0.00014,2]
[331449928,1720421454885,-446.29773604,0.00014,2]
[331449929,1720421454896,-4756.47301503,0.00014,2]
[331449930,1720421454908,-4209.38284784,0.00014,2]
[331449931,1720421454919,-1651.94935281,0.00014,2]
[331449932,1720421454931,-10852.37161413,0.00014,2]
[331449933,1720421454942,-528.39896365,0.00014,2]
[331449934,1720421454954,-483467.18656274,0.00014,2]
[331449935,1720421454966,-785.23100942,0.00014,2]
[331449936,1720421455422,-28372.69788135,0.00014,2]
[331449937,1720421455434,-2662.14219701,0.00014,2]
[331449938,1720421455447,-775.42663165,0.00014,2]
[331449939,1720421455459,-17493.33481061,0.00014,2]
[331449940,1720421455555,-313.27,0.00014,2]
[331449941,1720421455570,-254.99999,0.00014,2]
[331449942,1720421455582,-2676.10473281,0.00014,2]
[331449943,1720421455594,-7214.73959698,0.00014,2]
[331449944,1720421455606,-1145.08013776,0.00014,2]
[331449945,1720421455618,-11216.25702667,0.00014,2]
[331449946,1720421455630,-31778.36654774,0.00014,2]
[331449947,1720421456497,-1967.27036967,0.00012609,2]
[331449948,1720421456506,-1334.26645667,0.00014,2]
[331449949,1720421456519,-16189.57409953,0.00014,2]
[331449950,1720421456530,-1363.54262393,0.00014,2]
[331449951,1720421456921,-78412.22545677,0.00014,2]
[331449952,1720421456932,-454.18508886,0.00014,2]
[331449953,1720421456945,-501.98358633,0.00014,2]
[331449954,1720421456956,-86103.62173143,0.00014,2]
[331449955,1720421456968,-380.35540917,0.00014,2]
[331449956,1720421457023,-52877.57373107,0.00014,2]
[331449957,1720421457111,-252.06725577,0.00014,2]
[331449958,1720421457122,-1825.21295356,0.00014,2]
[331449959,1720421457133,-14640.27179132,0.00014,2]
[331449960,1720421457144,-476.45777715,0.00014,2]
[331449961,1720421457227,-197.46917473,0.00014,2]
[331449962,1720421457238,-58365.42338795,0.00014,2]
[331449963,1720421457247,-153.24481132,0.00014092,2]
[331449964,1720421457258,-198.32,0.00014229,2]
[331449965,1720421457267,-155.4,0.00014249,2]
[331449966,1720421457277,-1000.0,0.00014393,2]
[331449967,1720421457286,-2100.0,0.000145,5]
[331449968,1720421457295,-2600.0,0.000146,5]
[331449969,1720421457305,-500.0,0.000147,5]
[331449970,1720421457316,-219.0,0.000148,2]
[331449971,1720421457326,-500.0,0.000148,5]
[331449972,1720421457335,-2141.24751191,0.00014849,2]
[331449973,1720421457344,-2141.24751191,0.00014849,2]
[331449974,1720421457354,-11687.62888835,0.0001485,2]
[331449975,1720421457363,-200.00000004,0.0001485,2]
[331449976,1720421457373,-500.0,0.0001488,2]
[331449977,1720421457383,-22111.8425,0.000149,2]
[331449978,1720421457392,-1000.0,0.000149,2]
[331449979,1720421457407,-802.0,0.000149,2]
[331449980,1720421457416,-500.0,0.000149,5]
[331449981,1720421457427,-153.24481131,0.000149,2]
[331449982,1720421457436,-343.34,0.00014904,2]
[331449983,1720421457446,-400.0,0.0001497,2]
[331449984,1720421457456,-500.0,0.0001497,2]
[331449985,1720421457469,-253.96375407,0.00014999,2]
[331449986,1720421457478,-150.0,0.00014999,2]
[331449987,1720421457488,-250.26050179,0.00014999,2]
[331449988,1720421457499,-300.0,0.00014999,2]
[331449989,1720421457508,-300.0,0.00014999,2]
[331449990,1720421457517,-300.0,0.00014999,2]
[331449991,1720421457527,-300.0,0.00014999,2]
[331449992,1720421457537,-300.0,0.00014999,2]
[331449993,1720421457546,-300.0,0.00014999,2]
[331449994,1720421457555,-300.0,0.00014999,2]
[331449995,1720421457566,-300.0,0.00014999,2]
[331449996,1720421457575,-300.0,0.00014999,2]
[331449997,1720421457584,-300.0,0.00014999,2]
[331449998,1720421457594,-262.0,0.00014999,2]
[331449999,1720421457604,-34000.84192738,0.00015,2]
[331450000,1720421459411,-355.08,0.0001337,2]
[331450001,1720421459420,-486.26827166,0.00014499,2]
[331450002,1720421459481,-145.0407289,0.00014499,2]
[331450003,1720421459490,-696.6092711,0.00015,2]
[331450004,1720421459502,-329.70014336,0.00015,2]
[331450005,1720421460870,-660.33561149,0.00011699,2]
[331450006,1720421543319,-5495.94068851,0.00011699,2]
[331450007,1720421543328,-584297.40869579,0.00015,2]
[331450008,1720421543338,-491.0,0.00015,2]
[331450009,1720421543347,-323602.37132868,0.00015,2]
[331450010,1720421543356,-284417.60809722,0.00015,2]
[331450011,1720421543366,-984193.82121352,0.00015,2]
[331450012,1720421543375,-2000.0,0.00015,2]
[331450013,1720421543385,-7912.99225875,0.00015,2]
[331450014,1720421545662,-721.0,0.000149,2]
[331450015,1720421545673,-2092.49261254,0.00015,2]
[331450016,1720421545719,-1470.80000001,0.00015,2]
[331450017,1720421545732,-364.40324563,0.00015,2]
[331450018,1720421545759,-561.095451,0.00015,2]
[331450019,1720421545775,-2580.0,0.00015,2]
[331450020,1720421545849,-6363.65315546,0.00015,2]
[331450023,1720422106188,300.0,0.00011199,2]
[331450024,1720422106216,1841.24751191,0.00011199,2]
[331450025,1720422230590,150.0,0.00011199,2]
[331450026,1720422230611,150.0,0.00011199,2]
[331450027,1720422230633,150.0,0.00011199,2]
[331450028,1720422230656,216.35339201,0.00011199,2]
[331450029,1720422252531,554.18129514,0.00011199,2]
[331450032,1720422338023,191.08195248,0.00011199,2]
[331450033,1720422361767,2141.24751191,0.00011199,2]
[331450051,1720422628173,2141.24751191,0.00011199,2]
[331450052,1720422633487,-373.95,0.00011289,2]
[331450053,1720422633497,-701.0,0.00012071,2]
[331450054,1720422633507,-163.56605059,0.00012173,2]
[331450055,1720422633516,-194.02490808,0.00012273,2]
[331450056,1720422633526,-400.0,0.00012302,2]
[331450057,1720422633536,-400.0,0.00012302,2]
[331450058,1720422633545,-81.0916339,0.0001249,2]
[331450059,1720422633562,-1933.41941165,0.0001249,2]
[331450060,1720422633572,-250.0,0.00013037,2]
[331450061,1720422633582,-250.0,0.00013077,2]
[331450062,1720422633592,-170.29365821,0.00013126,2]
[331450063,1720422633604,-129.70634179,0.00013126,2]
[331450064,1720422633613,-462.12662794,0.00013128,2]
[331450065,1720422633623,-351.43447121,0.00013128,2]
[331450066,1720422633635,-140.18244513,0.00013128,2]
[331450067,1720422633645,-194.66,0.00013148,2]
[331450068,1720422633655,-239.48726862,0.00013148,2]
[331450069,1720422633667,-257.80273138,0.00013148,2]
[331450070,1720422633677,-1221.22,0.00013204,2]
[331450071,1720422633686,-1135.0585254,0.00013246,2]
[331450072,1720422633698,-699.2614746,0.00013246,2]
[331450073,1720422633708,-1153.70966775,0.00013247,2]
[331450074,1720422633721,-409.12146104,0.00013247,2]
[331450075,1720422633734,-756.12887121,0.00013247,2]
[331450076,1720422633744,-7006.55531289,0.00013284,2]
[331450077,1720422633755,-16893.44468711,0.00013284,2]
[331450078,1720422633765,-150.0,0.00013488,2]
[331450079,1720422633775,-499.99,0.00013516,2]
[331450080,1720422633784,-1986.28451758,0.00013516,2]
[331450081,1720422633794,-155.26,0.00013528,2]
[331450082,1720422633803,-198.32,0.00013534,2]
[331450083,1720422633813,-373.95,0.00013553,2]
[331450084,1720422633823,-150.0,0.00013563,2]
[331450085,1720422633832,-2185.40359384,0.00013564,2]
[331450086,1720422633847,-3303.52640616,0.00013564,2]
[331450087,1720422633857,-1173.51,0.00013564,2]
[331450088,1720422633866,-4754.34323151,0.0001359,2]
[331450089,1720422633878,-514.29235671,0.0001359,2]
[331450090,1720422633890,-297.86256585,0.0001359,2]
[331450091,1720422633903,-247.50184593,0.0001359,2]
[331450092,1720422633913,-4343.934,0.0001359,2]
[331450093,1720422633923,-155.26,0.00013669,2]
[331450094,1720422633932,-250.0,0.00013699,2]
[331450095,1720422633942,-1361.3,0.00013699,2]
[331450096,1720422633952,-200.0,0.00013699,2]
[331450097,1720422633964,-10000.0,0.00013699,2]
[331450098,1720422633974,-2751.0,0.00013699,2]
[331450099,1720422633984,-4755.4453708,0.00013736,2]
[331450102,1720422638005,-1773.35208208,0.00011971,2]
[331450103,1720422638018,-971.35320614,0.00011971,2]
[331450104,1720422638028,-261.3858728,0.00013574,2]
[331450105,1720422638038,-5292.3309169,0.00013736,2]
[331450106,1720422638050,-421.399227,0.00013736,2]
[331450107,1720422638063,-2307.93525578,0.00013736,2]
[331450108,1720422638073,-155.26,0.0001381,2]
[331450109,1720422638084,-1000.0,0.00013846,2]
[331450110,1720422638094,-1600.0,0.00013895,2]
[331450111,1720422638105,-300.416,0.00013895,2]
[331450112,1720422638115,-155.26,0.00013951,2]
[331450114,1720422638125,-2000.0,0.00013973,3]
[331450116,1720422638140,-150.0,0.00013987,2]
[331450118,1720422638149,-21754.41309129,0.00013999,2]
[331450166,1720422638644,-13848.95116773,0.00013999,2]
[331450168,1720422638653,-155.26,0.00014091,2]
[331450170,1720422638663,-355.08,0.00014192,2]
[331450172,1720422638674,-277.62,0.00014192,2]
[331450174,1720422638684,-300.0,0.00014192,2]
[331450176,1720422638694,-150.0,0.00014192,2]
[331450178,1720422638704,-424.61,0.00014192,2]
[331450180,1720422638716,-150.0,0.00014192,2]
[331450182,1720422638726,-155.26,0.00014232,2]
[331450184,1720422638736,-1115.719642,0.00014247,2]
[331450186,1720422638746,-420.0,0.00014393,2]
[331450188,1720422638759,-575.0,0.00014409,2]
[331450190,1720422638769,-150.0,0.00014487,2]
[331450192,1720422638780,-300.0,0.00014603,2]
[331450194,1720422638790,-156.02,0.00014631,2]
[331450196,1720422638800,-904.01436501,0.0001467,2]
[331450198,1720422638809,-385.96925274,0.0001473,2]
[331450200,1720422638819,-163.56605059,0.00014804,2]
[331450202,1720422638829,-240.0,0.00014824,2]
[331450204,1720422638839,-4327.08572182,0.0001485,2]
[331450206,1720422638849,-200.0,0.0001488,2]
[331450208,1720422638858,-2460.2875,0.000149,2]
[331450210,1720422638868,-41064.53,0.000149,2]
[331450211,1720422638878,-222.39746096,0.000149,2]
[331450212,1720422638888,-2194.31237078,0.000149,2]
[331450213,1720422638899,-322.81903102,0.000149,2]
[331450214,1720422638909,-529.475281,0.000149,2]
[331450215,1720422638919,-178.1,0.00014904,3]
[331450216,1720422638930,-208.6813478,0.00014973,2]
[331450217,1720422638940,-295.2981919,0.00014986,2]
[331450218,1720422638950,-201.01542285,0.0001499,2]
[331450220,1720422638960,-201.01542285,0.0001499,2]
[331450221,1720422638971,-201.01542285,0.0001499,2]
[331450223,1720422638981,-165.89,0.0001499,2]
[331450225,1720422638992,-165.89,0.0001499,2]
[331450227,1720422639002,-442.92969309,0.00014999,2]
[331450229,1720422639013,-300.0,0.00014999,2]
[331450231,1720422639023,-300.0,0.00014999,2]
[331450233,1720422639034,-300.0,0.00014999,2]
[331450235,1720422639044,-300.0,0.00014999,2]
[331450237,1720422639055,-300.0,0.00014999,2]
[331450239,1720422639065,-300.0,0.00014999,2]
[331450241,1720422639075,-300.0,0.00014999,2]
[331450243,1720422639086,-300.0,0.00014999,2]
[331450245,1720422639096,-300.0,0.00014999,2]
[331450247,1720422639107,-300.0,0.00014999,2]
[331450249,1720422639117,-300.0,0.00014999,2]
[331450251,1720422639127,-699.0,0.00015,2]
[331450253,1720422639139,-3314.11380136,0.00015,2]
[331450255,1720422639149,-1000.0,0.00015,2]
[331450257,1720422639159,-500.0,0.00015,2]
[331450259,1720422639169,-23353.88728304,0.00015,2]
[331450262,1720422639190,-73430.45188998,0.00015,2]
[331450264,1720422639203,-956.99378914,0.00015,2]
[331450266,1720422639217,-1821.10475177,0.00015,2]
[331450273,1720422639279,-2182.3656423,0.00015,2]
[331450275,1720422639292,-306.24748554,0.00015,2]
[331450280,1720422639335,-4301.317335,0.00015,2]
[331450283,1720422639347,-2067.86079862,0.00015,2]
[331450285,1720422639360,-548.096,0.00015,2]
[331450287,1720422639371,-584.51193924,0.00015,2]
[331450289,1720422639385,-251.60714365,0.00015,2]
[331450292,1720422639399,-1169.55400002,0.00015,2]
[331450299,1720422639456,-1264.43557993,0.00015,2]
[331450301,1720422639471,-4906.07104673,0.00015,2]
[331450303,1720422639484,-29642.4650388,0.00015,2]
[331450306,1720422639495,-7622.37408089,0.00015,2]
[331450308,1720422639505,-1000.0,0.00015,2]
[331450310,1720422639516,-1196.47141079,0.00015,2]
[331450312,1720422639526,-42332.43592981,0.00015,2]
[331450315,1720422639539,-454.40554093,0.00015,2]
[331450317,1720422639550,-332.57131004,0.00015,2]
[331450319,1720422639563,-544.38170658,0.00015,2]
[331450322,1720422639582,-2644.17619719,0.00015,2]
[331450324,1720422639593,-269.49698536,0.00015,2]
[331450326,1720422639605,-1019.83248483,0.00015,2]
[331450328,1720422639616,-813.90015,0.00015,2]
[331450330,1720422639628,-264.54053448,0.00015,2]
[331450332,1720422639640,-5911.40242929,0.00015,2]
[331450432,1720422640469,-3896.57759999,0.00015,2]
[331450435,1720422640481,-1699.26,0.00015,2]
[331450441,1720422640530,-663.40626513,0.00015,2]
[331450443,1720422640542,-6582.02504383,0.00015,2]
[331450445,1720422640555,-72285.40590301,0.00015,2]
[331450451,1720422640601,-816624.29045194,0.00015,2]
[331450453,1720422640613,-3922.53151645,0.00015,2]
[331450455,1720422640625,-714.21663336,0.00015,2]
[331450457,1720422640636,-5071.43030025,0.00015,2]
[331450474,1720422640797,-3125.38240913,0.00015,2]
[331450477,1720422640808,-524.28381815,0.00015,2]
[331450480,1720422640873,-118.91838529,0.00015,2]
[331450519,1720422643652,-1407.0,0.00015,2]
[331450520,1720422643663,-15734.20194805,0.00015,2]
[331450521,1720422643676,-5967.57370409,0.00015,2]
[331450523,1720422644019,-4704.000003,0.00015,2]
[331450542,1720422646683,-400.0,0.00012273,2]
[331450543,1720422646694,-1128.13143572,0.000149,2]
[331450544,1720422646704,-1224.85721791,0.00015,2]
[331450545,1720422646784,-1000.0,0.00015,2]
[331450549,1720422725375,8727.6576,0.00011189,2]
[331450551,1720422765811,21758.86569617,0.00011199,2]
[331450553,1720422822726,3123.46048771,0.00011199,2]
[331450555,1720422868244,2378.1233349,0.00011199,2]
[331450556,1720422890643,2141.24751191,0.00011199,2]
[331450558,1720422938432,10587.64234158,0.00011199,2]
[331450561,1720422964036,1986.28451758,0.00011199,2]
[331450562,1720422986805,1904.31747652,0.00011199,2]
[331450563,1720422993247,615.52226057,0.00011199,2]
[331450564,1720423015337,475.71197158,0.00011199,2]
[331450567,1720423104062,400.0,0.00011199,2]
[331450568,1720423110103,156.05006612,0.00011199,2]
[331450569,1720423111023,348.70295838,0.00011199,2]
[331450570,1720423119555,220.50420304,0.00011199,2]
[331450573,1720423166164,195.18,0.00010959,2]
[331450574,1720423167905,163.5876468,0.00011199,2]
[331450575,1720423169853,2141.24751191,0.00011199,2]
[331450576,1720423177951,155.27540936,0.00011199,2]
[331450577,1720423193012,2739.03404775,0.00011199,2]
[331450578,1720423201309,3480.41815664,0.00011199,2]
[331450579,1720423201334,2879.92861633,0.00011199,2]
[331450580,1720423202958,150.0,0.00011199,2]
[331450581,1720423203176,150.0,0.00011199,2]
[331450582,1720423203402,299.44104474,0.00011199,2]
[331450583,1720423207248,2739.03404775,0.00011199,2]
[331450584,1720423228663,3781.59629118,0.00011199,2]
[331450585,1720423228686,127.87836223,0.00011199,2]
[331450587,1720423258440,1986.28451758,0.00011199,2]
[331450589,1720423292846,1904.232167,0.00011199,2]
[331450590,1720423324560,1401.95921277,0.00011199,2]
[331450591,1720423344596,527.04753133,0.00011199,2]
[331450592,1720423357163,625.05503648,0.00011199,2]
[331450593,1720423371748,689.15902559,0.00011199,2]
[331450596,1720423419294,457.35417858,0.00011199,2]
[331450597,1720423430115,267.06501758,0.00011199,2]
[331450598,1720423431606,257.88055068,0.00011199,4]
[331450599,1720423438328,263.72313658,0.00011199,2]
[331450600,1720423445657,519.59298252,0.00011199,2]
[331450601,1720423448566,155.0,0.00011199,2]
[331450602,1720423455730,817.76828108,0.00011199,2]
[331450603,1720423455752,382.23171892,0.00011199,2]
[331450604,1720423455892,2141.24751191,0.00011199,2]
[331450605,1720423458263,273.74302174,0.00011199,2]
[331450607,1720423461576,432.61296917,0.00011199,2]
[331450608,1720423465794,254.227224,0.00011199,2]
[331450609,1720423467408,156.60438948,0.00011199,2]
[331450610,1720423469560,337.09590134,0.00011199,2]
[331450611,1720423475674,298.01060598,0.00011199,2]
[331450612,1720423487767,158.47133143,0.00011199,2]
[331450617,1720423557381,400.0,0.00011199,2]
[331450618,1720423558160,1873.95013782,0.00011199,2]
[331450619,1720423580590,429.14,0.00011035,2]
[331450620,1720423593296,218.11385927,0.00011199,2]
[331450621,1720423621339,1278.08141606,0.00011199,2]
[331450622,1720423621655,1366.46991288,0.00011199,2]
[331450623,1720423621677,3932.43840998,0.00011199,2]
[331450628,1720423692292,1045.34908254,0.00011199,2]
[331450629,1720423717287,2141.24751191,0.00011199,2]
[331450654,1720423772569,369.18293041,0.00011199,2]
[331450655,1720423791296,1923.9863244,0.00011199,7]
[331450658,1720423809791,269.79567347,0.00011199,2]
[331450666,1720423833249,-71.22542537,0.0001265,2]
[331450667,1720423833262,-123.69593479,0.0001265,2]
[331450668,1720423833271,-239.5842,0.0001265,2]
[331450669,1720423833280,-200.0,0.0001275,2]
[331450670,1720423833295,-250.0,0.00012843,2]
[331450671,1720423833305,-250.0,0.00012857,2]
[331450672,1720423833314,-3352.66,0.00012935,2]
[331450673,1720423833323,-499.99,0.00013127,2]
[331450674,1720423833332,-155.2013653,0.00013128,2]
[331450675,1720423833344,-208.6813478,0.00013128,2]
[331450676,1720423833354,-462.12662794,0.00013128,2]
[331450677,1720423833363,-400.0,0.00013128,2]
[331450678,1720423833372,-300.0,0.00013298,2]
[331450679,1720423833382,-300.0,0.00013298,2]
[331450680,1720423833391,-429.14,0.00013299,2]
[331450681,1720423833400,-216.57,0.00013445,2]
[331450682,1720423833409,-1682.59729054,0.00013516,2]
[331450683,1720423833418,-2141.24751191,0.00013516,2]
[331450684,1720423833427,-155.0,0.00013516,2]
[331450685,1720423833437,-598.3733697,0.00013543,2]
[331450686,1720423833446,-720.44278656,0.00013543,2]
[331450687,1720423833455,-150.0,0.00013573,2]
[331450688,1720423833464,-369.18293041,0.00013574,2]
[331450689,1720423833474,-294958.95375326,0.00013574,2]
[331450690,1720423833485,-1264.92213148,0.00013574,2]
[331450691,1720423833496,-803.69185319,0.00013574,2]
[331450692,1720423833507,-8787.9811567,0.00013574,2]
[331450693,1720423833518,-1541.9914002,0.00013574,2]
[331450694,1720423833529,-602.65981525,0.00013574,2]
[331450695,1720423838767,-400.0,0.00012314,2]
[331450696,1720423838777,-2389.11366496,0.00013574,2]
[331450698,1720423838787,-680.65,0.00013699,2]
[331450700,1720423838801,-200.0,0.00013699,2]
[331450701,1720423838811,-250.0,0.00013699,2]
[331450702,1720423838821,-6122.67,0.00013699,2]
[331450703,1720423838831,-165.89,0.000137,2]
[331450704,1720423838840,-242.37427876,0.00013802,2]
[331450705,1720423838850,-478.79711826,0.00013849,2]
[331450706,1720423838860,-346.68469279,0.00013849,2]
[331450707,1720423838870,-155.0,0.00013849,2]
[331450708,1720423838879,-367.14829552,0.00013849,2]
[331450709,1720423838889,-155.07865353,0.00013889,2]
[331450710,1720423838899,-256.03446951,0.00013899,2]
[331450711,1720423838908,-1004.147678,0.00013973,2]
[331450712,1720423838917,-2000.0,0.00013973,3]
[331450713,1720423838927,-1000.0,0.0001399,2]
[331450714,1720423838937,-264.7511771,0.00013999,2]
[331450715,1720423838948,-1600.0,0.00014077,2]
[331450716,1720423838957,-854.69,0.00014141,2]
[331450717,1720423838967,-423.69,0.00014141,2]
[331450718,1720423838978,-392.0,0.00014244,2]
[331450719,1720423838988,-854.59,0.00014244,2]
[331450720,1720423838998,-853.81,0.00014244,2]
[331450721,1720423839008,-155.3679551,0.00014393,2]
[331450722,1720423839018,-155.4,0.00014607,2]
[331450723,1720423839029,-1143.90805996,0.000147,2]
[331450724,1720423839042,-1004.147678,0.00014795,2]
[331450725,1720423839052,-41577.118,0.000148,2]
[331450726,1720423839062,-1285.3297,0.000148,2]
[331450727,1720423839073,-319.27,0.00014814,2]
[331450728,1720423839083,-240.0,0.00014836,2]
[331450729,1720423839093,-2508.58276,0.0001486,2]
[331450730,1720423839103,-500.0,0.00014879,2]
[331450731,1720423839113,-500.0,0.0001488,2]
[331450733,1720423839123,-500.0,0.0001488,2]
[331450735,1720423839134,-200.0,0.0001488,2]
[331450737,1720423839144,-3400.4621,0.000149,2]
[331450739,1720423839155,-953.034,0.000149,2]
[331450740,1720423839166,-230.0229,0.000149,2]
[331450743,1720423839176,-15679.4269,0.000149,2]
[331450744,1720423839187,-175.3133,0.000149,2]
[331450746,1720423839197,-10087.9988,0.000149,2]
[331450748,1720423839208,-4764.8295,0.000149,2]
[331450749,1720423839219,-167.78055634,0.000149,2]
[331450750,1720423839230,-752.08762382,0.000149,2]
[331450751,1720423839243,-769.14242717,0.000149,2]
[331450753,1720423839254,-2508.58276,0.0001494,2]
[331450755,1720423839264,-184.60793836,0.0001499,2]
[331450757,1720423839276,-165.89,0.0001499,2]
[331450759,1720423839287,-300.0,0.00014999,2]
[331450762,1720423839308,-300.0,0.00014999,2]
[331450764,1720423839319,-300.0,0.00014999,2]
[331450766,1720423839331,-300.0,0.00014999,2]
[331450770,1720423839342,-300.0,0.00014999,2]
[331450771,1720423839352,-300.0,0.00014999,2]
[331450773,1720423839362,-456.12357337,0.00014999,2]
[331450775,1720423839372,-300.0,0.00014999,2]
[331450777,1720423839383,-707.0,0.00015,2]
[331450779,1720423839393,-115459.7812052,0.00015,2]
[331450781,1720423839403,-14293.91524297,0.00015,2]
[331450783,1720423839413,-72853.94755332,0.00015,2]
[331450797,1720423839553,-345.92275478,0.00015,2]
[331450799,1720423839565,-13099.65058182,0.00015,2]
[331450802,1720423839578,-10078.58322603,0.00015,2]
[331450804,1720423839590,-15068.29656909,0.00015,2]
[331450806,1720423839602,-43357.08460177,0.00015,2]
[331450808,1720423839612,-154508.49158362,0.00015,2]
[331450810,1720423839622,-137561.27743055,0.00015,2]
[331450812,1720423839636,-227402.11103886,0.00015,2]
[331450832,1720423839762,-323.19694503,0.00015,2]
[331450894,1720423840469,-6696.72501503,0.00015,2]
[331450934,1720423840928,-292.805,0.00015,2]
[331450967,1720423841788,-2638.06245013,0.00015,2]
[331450968,1720423841939,-156.15814508,0.00013759,2]
[331450969,1720423841950,-5719.55039102,0.00015,2]
[331450970,1720423841963,-75000.0,0.00015,2]
[331451001,1720423844756,-2940.02381712,0.00015,2]
[331451002,1720423844903,-4095.58485922,0.00015,2]
[331451071,1720423847930,-1502.09694295,0.00015,2]
[331451072,1720423847939,-5513.62007635,0.00015,2]
[331451073,1720423847950,-416.86618057,0.00015,2]
[331451074,1720423848001,-674.568832,0.00015,2]
[331451075,1720423848012,-282.72193886,0.00015,2]
[331451076,1720423848024,-2343.36758848,0.00015,2]
[331451077,1720423848106,-621.29916446,0.00015,2]
[331451078,1720423848174,-9395.11853983,0.00015,2]
[331451079,1720423848185,-355.99679615,0.00015,2]
[331451081,1720424133584,1923.9863244,0.00011199,7]
[331451083,1720424430483,-6895.46832154,0.00034038,30]
[331451084,1720424430528,-3000.0,0.00034038,30]
[331451085,1720424430570,-1710.70616895,0.00034038,30]
[331451086,1720424430609,-2907.83111776,0.00034038,30]
[331451087,1720424430647,-2707.03840466,0.00034038,30]
[331451088,1720424430684,-2543.83138288,0.00034038,30]
[331451089,1720424430721,-1675.47457806,0.00034038,30]
[331451090,1720424430763,-983.0,0.00034038,30]
[331451091,1720424430799,-2335.0,0.00034038,30]
[331451092,1720424430838,-516.0,0.00034038,30]
[331451093,1720424430873,-191.0,0.00034038,30]
[331451094,1720424430910,-191.0,0.00034038,30]
[331451095,1720424430948,-2000.0,0.00034038,30]
[331451096,1720424430986,-2000.0,0.00034038,30]
[331451097,1720424431024,-959.1,0.00034038,30]
[331451098,1720424431060,-5252.0,0.00034038,120]
[331451099,1720424431096,-504.23083862,0.00034038,30]
[331451100,1720424431133,-500.0,0.00034038,30]
[331451101,1720424431169,-501.06076421,0.00034038,31]
[331451102,1720424431206,-500.0,0.00034038,30]
[331451103,1720424431244,-500.0,0.00034038,31]
[331451104,1720424431280,-500.0,0.00034038,32]
[331451105,1720424432549,-500.0,0.00034038,33]